bitfinex/quotes_ETHUSD_20250603
["timestamp","ask_amount","ask_price","bid_price","bid_amount"]
[1748945269187,7.69182933,2615.2,2614.8,8.3725192]
[1748945269639,2.1298,2615.3,2615.0,8.0]
[1748945269993,1.0,2615.3,2615.2,8.0]
[1748945272103,1.0,2615.3,2615.2,11.82379932]
[1748945272570,0.71995547,2615.3,2615.2,22.37379932]
[1748945272911,0.48629425,2615.3,2615.2,22.37379932]
[1748945273107,0.23366123,2615.3,2615.2,22.37379932]
[1748945273293,0.02,2615.9,2615.8,16.89639224]
[1748945273462,0.02,2615.9,2615.8,10.90134481]
[1748945273771,0.02,2615.9,2615.8,14.74428481]
[1748945273981,0.02,2615.9,2615.8,13.27880681]
[1748945274180,0.02,2615.9,2615.8,8.0]
[1748945274378,0.02,2615.9,2615.8,14.43610681]
[1748945274611,0.02,2615.9,2615.8,18.25902905]
[1748945274965,0.02,2615.9,2615.8,14.43610681]
[1748945275291,1.1215,2616.7,2616.3,8.0]
[1748945275606,1.1215,2616.7,2616.4,2.90134481]
[1748945275767,0.02,2616.9,2616.6,6.72309623]
[1748945275967,0.02,2616.9,2616.3,0.38715541]
[1748945275968,0.02,2616.9,2616.8,2.90134481]
[1748945276397,0.02,2616.9,2616.8,6.72280613]
[1748945276600,0.02,2616.9,2616.8,2.90134481]
[1748945276902,0.02,2616.9,2616.8,24.72280613]
[1748945277728,0.02,2616.9,2616.8,25.66053448]
[1748945278017,0.02,2616.9,2616.8,23.70053448]
[1748945278195,0.02,2616.9,2616.8,17.80126248]
[1748945278391,0.02,2616.9,2616.8,0.38772835]
[1748945278700,0.02,2616.9,2616.8,2.90134481]
[1748945279111,0.02,2616.9,2616.8,18.75379713]
[1748945279298,0.02,2616.9,2616.8,16.23677702]
[1748945279820,4.9953,2617.5,2616.9,10.0]
[1748945280026,5.87686828,2617.5,2616.9,10.0]
[1748945280208,1.98886828,2617.5,2617.0,9.70012246]
[1748945280530,1.98886828,2617.5,2617.0,9.70004208]
[1748945280700,0.88156828,2617.5,2617.1,3.82099048]
[1748945281026,3.887,2617.8,2617.1,5.457604]
[1748945281210,3.82051607,2617.5,2617.0,0.994]
[1748945281432,3.889,2617.7,2617.1,3.82092896]
[1748945281609,3.889,2617.7,2617.1,13.82092896]
[1748945281805,3.83998191,2617.9,2617.1,20.0]
[1748945282036,4.31086342,2617.8,2617.2,3.82073491]
[1748945282360,3.82018414,2617.7,2617.3,10.0]
[1748945282519,3.82027269,2617.7,2617.1,13.82089488]
[1748945282841,3.82029339,2617.6,2616.8,0.3843247]
[1748945283041,1.0922,2617.7,2616.8,0.3843247]
[1748945283042,7.70948506,2617.5,2616.9,12.947651]
[1748945283249,4.5915489,2617.4,2616.9,2.947651]
[1748945283443,3.82073128,2617.3,2616.5,4.37188192]
[1748945283610,1.0922,2617.2,2616.6,0.994]
[1748945283805,1.0922,2617.2,2616.7,3.856198]
[1748945284007,0.77094851,2617.4,2617.0,5.87895981]
[1748945284206,3.82065038,2617.4,2617.0,5.87895981]
[1748945284942,3.82065038,2617.4,2617.0,10.0]
[1748945285116,1.1532,2617.5,2616.8,14.20636697]
[1748945285315,3.82074188,2617.3,2617.0,10.0]
[1748945285712,3.82074188,2617.3,2616.8,3.82135375]
[1748945285913,4.70018343,2617.3,2617.0,8.0]
[1748945286443,8.59018343,2617.3,2617.0,8.0]
[1748945286747,8.59018343,2617.3,2616.8,3.82135375]
[1748945286917,8.59018343,2617.3,2617.0,8.0]
[1748945287341,8.59018343,2617.3,2616.8,3.82135375]
[1748945287747,0.85901834,2617.2,2616.8,4.20529823]
[1748945287947,4.67993824,2617.2,2616.8,0.38394448]
[1748945288343,4.67993824,2617.2,2616.7,17.70051881]
[1748945289019,4.67993824,2617.2,2616.8,8.0]
[1748945289219,3.82131529,2616.9,2616.8,8.0]
[1748945289574,4.76614116,2616.9,2616.2,7.690335]
[1748945289780,0.87914116,2616.9,2616.5,3.82183875]
[1748945290072,3.889,2616.8,2616.6,8.0]
[1748945290360,7.71049891,2616.8,2616.4,8.0]
[1748945290546,1.24110178,2616.7,2616.4,8.0]
[1748945290861,1.24110178,2616.7,2616.4,0.39002976]
[1748945290862,3.82175884,2616.6,2616.4,0.39002976]
[1748945291060,7.7139846,2616.5,2616.0,0.29176096]
[1748945291226,7.7139846,2616.5,2616.1,10.0]
[1748945291572,7.7139846,2616.5,2615.9,9.70169777]
[1748945291573,3.82208362,2616.4,2615.9,5.87895981]
[1748945291775,0.88467836,2616.4,2616.0,12.55184132]
[1748945291928,4.70675656,2616.4,2616.2,8.0]
[1748945292255,4.70675656,2616.4,2616.0,8.38224291]
[1748945292554,0.88467836,2616.4,2616.2,8.0]
[1748945292756,0.88467836,2616.4,2616.0,12.20479852]
[1748945293130,0.88467836,2616.4,2616.0,0.38224291]
[1748945293131,0.85986228,2616.3,2616.0,0.38224291]
[1748945293329,0.85986228,2616.3,2615.8,10.0]
[1748945293330,1.0727,2616.1,2615.8,10.0]
[1748945293721,1.0727,2616.1,2615.9,8.0]
[1748945293939,1.0727,2616.1,2615.8,10.0]
[1748945293940,1.0727,2616.1,2615.8,8.0]
[1748945294165,1.0727,2616.1,2615.8,8.38930451]
[1748945294349,1.0727,2616.1,2615.9,3.82271019]
[1748945294350,3.891,2616.0,2615.9,3.82271019]
[1748945294981,1.0727,2616.1,2615.8,12.21220197]
[1748945295182,3.891,2616.0,2615.8,12.2121518]
[1748945295475,3.891,2616.0,2615.9,3.82270078]
[1748945295667,3.891,2616.0,2615.8,8.38930451]
[1748945295862,0.85986228,2616.3,2615.9,3.8227761]
[1748945296071,3.89,2616.1,2615.9,3.8227761]
[1748945296239,0.85986228,2616.3,2616.1,8.0]
[1748945296453,3.89,2616.2,2616.0,11.82262185]
[1748945296650,3.82179755,2616.6,2616.0,11.82262185]
[1748945296651,3.82112476,2617.1,2616.0,8.0]
[1748945296887,1.1073,2616.8,2616.3,8.0]
[1748945297088,7.7126147,2616.7,2616.3,8.0]
[1748945297475,3.891,2616.7,2615.8,0.38930451]
[1748945297678,7.7126194,2616.7,2616.0,8.0]
[1748945297887,3.891,2616.7,2616.0,8.0]
[1748945298189,3.82213848,2616.4,2616.0,8.0]
[1748945298393,3.892,2616.4,2616.0,8.0]
[1748945298596,3.892,2616.4,2616.0,11.82262054]
[1748945298964,3.892,2616.4,2616.0,8.0]
[1748945298965,7.71406155,2616.4,2616.0,8.0]
[1748945299162,1.1424,2616.3,2616.0,8.0]
[1748945299502,1.1424,2616.3,2616.0,11.82261689]
[1748945301287,1.1424,2616.3,2616.0,8.0]
[1748945302385,1.1424,2616.3,2616.0,11.82261451]
[1748945302771,1.1424,2616.3,2616.0,8.0]
[1748945302968,3.82233774,2616.2,2615.8,0.37998655]
[1748945303173,3.89,2616.1,2615.9,8.0]
[1748945304401,4.96466895,2616.3,2615.9,8.0]
[1748945304579,4.96466895,2616.3,2615.9,17.70172374]
[1748945304580,3.889,2616.2,2615.9,17.70172374]
[1748945304760,3.889,2616.2,2615.9,13.87895981]
[1748945305510,8.97891945,2616.2,2615.9,8.0]
[1748945305798,3.82252237,2616.1,2615.8,0.37618991]
[1748945306003,3.82265683,2616.0,2615.7,8.27756926]
[1748945306211,7.71281392,2615.9,2615.8,8.0]
[1748945306373,7.71281392,2615.9,2615.7,8.0]
[1748945306567,4.92568948,2615.8,2615.4,8.52911811]
[1748945306896,4.92568948,2615.8,2615.4,8.797336]
[1748945307067,4.92568948,2615.8,2615.4,12.62081949]
[1748945307268,1.1027,2615.8,2615.6,8.0]
[1748945307640,1.1027,2615.8,2615.6,8.37653356]
[1748945308161,3.892,2615.7,2615.6,8.37653356]
[1748945308576,3.892,2615.7,2615.6,0.37653356]
[1748945308777,3.82336073,2615.5,2615.4,0.52911811]
[1748945308979,3.82358225,2615.4,2615.1,0.02]
[1748945309288,3.891,2615.4,2615.1,0.02]
[1748945310006,4.93056402,2615.3,2615.1,0.39275785]
[1748945311701,3.82379932,2615.2,2615.1,0.39275785]
[1748945312068,5.08833565,2615.2,2615.1,0.02]
[1748945313515,5.15853633,2615.2,2615.1,0.02]
[1748945313728,7.71779932,2615.2,2615.1,0.02]
[1748945314004,3.894,2615.2,2615.1,0.02]
[1748945315029,3.893,2615.2,2615.1,0.02]
[1748945315521,4.93056078,2615.3,2615.1,0.02]
[1748945315728,1.1069,2615.3,2615.1,5.89895981]
[1748945315885,3.893,2615.2,2615.1,13.89895981]
[1748945316941,3.843,2615.2,2615.1,13.89895981]
[1748945317332,3.843,2615.2,2615.1,11.17396921]
[1748945317484,3.894,2615.2,2615.1,8.02]
[1748945317689,7.71779932,2615.2,2615.1,8.02]
[1748945318147,7.71779932,2615.2,2615.1,0.02]
[1748945318648,7.72279932,2615.2,2615.1,0.02]
[1748945320427,8.86569932,2615.2,2615.1,0.02]
[1748945321152,4.96769932,2615.2,2615.1,0.02]
[1748945321325,9.74583741,2615.2,2615.1,0.02]
[1748945324060,9.74383741,2615.2,2615.1,0.02]
[1748945325929,5.84683741,2615.2,2615.1,0.02]
[1748945326353,8.86369932,2615.2,2615.1,0.02]
[1748945326560,4.96769932,2615.2,2615.1,0.02]
[1748945326870,8.86569932,2615.2,2615.1,0.02]
[1748945328570,4.96769932,2615.2,2615.1,0.02]
[1748945328872,8.86469932,2615.2,2615.1,0.02]
[1748945329058,10.13353741,2615.2,2615.1,0.02]
[1748945329462,4.96769932,2615.2,2615.1,0.02]
[1748945329659,3.82354855,2615.4,2615.1,0.02]
[1748945329835,7.72074832,2615.3,2615.1,0.02]
[1748945330377,3.82321455,2615.6,2615.1,8.02]
[1748945330536,3.82339237,2615.5,2615.1,8.02]
[1748945330870,3.82379932,2615.2,2615.1,8.02]
[1748945331069,3.897,2615.5,2615.1,8.02]
[1748945331248,3.82366617,2615.3,2615.1,8.02]
[1748945331863,3.897,2615.3,2615.1,8.02]
[1748945332178,3.82337173,2615.5,2615.1,8.02]
[1748945332179,3.8234283,2615.5,2615.1,8.02]
[1748945332487,3.897,2615.5,2615.1,8.02]
[1748945332683,3.82350867,2615.4,2615.1,8.02]
[1748945332988,3.82368064,2615.3,2615.1,8.02]
[1748945333171,3.82357306,2615.4,2615.1,8.02]
[1748945333996,1.1264,2615.9,2615.1,8.02]
[1748945334281,3.82348511,2615.5,2615.2,3.035158]
[1748945334572,3.82338182,2615.5,2615.2,5.540776]
[1748945334774,3.8236322,2615.4,2615.1,8.02]
[1748945334933,3.82379932,2615.2,2615.1,0.02]
[1748945335129,7.71979932,2615.2,2615.1,0.02]
[1748945335859,7.72171739,2615.3,2615.1,0.02]
[1748945336675,3.898,2615.4,2615.1,8.02]
[1748945336980,3.82349963,2615.5,2615.1,8.02]
[1748945336981,7.72138883,2615.5,2615.3,8.0]
[1748945337477,3.82350692,2615.4,2615.3,8.0]
[1748945337647,3.82350692,2615.4,2615.2,5.136804]
[1748945337648,7.72143939,2615.5,2615.1,13.90982445]
[1748945338097,3.82351711,2615.4,2615.1,13.90982445]
[1748945338267,3.82351711,2615.4,2615.3,8.0]
[1748945338600,3.898,2615.5,2615.1,0.02]
[1748945338601,3.82365311,2615.3,2615.1,0.02]
[1748945338810,4.96131706,2615.4,2615.1,0.02]
[1748945339099,3.898,2615.3,2615.1,0.02]
[1748945339472,1.1378,2615.7,2615.1,0.02]
[1748945339473,3.82341392,2615.5,2615.2,8.0]
[1748945339676,7.72427574,2615.6,2615.2,11.82379421]
[1748945339873,7.72427772,2615.6,2615.2,8.0]
[1748945340078,3.82377672,2615.3,2615.1,0.02]
[1748945340277,3.82357547,2615.4,2615.2,10.0]
[1748945340478,7.72357547,2615.4,2615.2,10.0]
[1748945341263,7.72357547,2615.4,2615.2,3.15384381]
[1748945341468,7.72357547,2615.4,2615.3,8.0]
[1748945342509,3.82377191,2615.3,2615.1,8.02]
[1748945342710,7.72359088,2615.4,2615.1,8.02]
[1748945342865,3.82365807,2615.3,2615.1,8.02]
[1748945343070,7.72356788,2615.4,2615.1,8.02]
[1748945343711,7.72358628,2615.4,2615.1,8.02]
[1748945344008,7.72358628,2615.4,2615.1,0.02]
[1748945344009,3.82379932,2615.2,2615.1,0.02]
[1748945344180,7.72079932,2615.2,2615.1,0.02]
[1748945344772,3.897,2615.2,2615.1,0.02]
[1748945346215,7.72079932,2615.2,2615.1,0.02]
[1748945347024,3.897,2615.2,2615.1,0.02]
[1748945347621,3.82366386,2615.3,2615.1,11.17384381]
[1748945347920,3.897,2615.2,2615.1,3.15384381]
[1748945348721,3.897,2615.2,2614.9,3.15384381]
[1748945348920,7.7208179,2615.2,2614.9,3.15384381]
[1748945349501,3.897,2615.2,2614.9,3.15384381]
[1748945349708,7.72080067,2615.2,2615.0,8.0]
[1748945350521,8.81897166,2615.2,2614.8,8.0]
[1748945351225,3.82405523,2615.1,2614.8,8.0]
[1748945351527,3.895,2615.0,2614.8,8.0]
[1748945354664,3.82434735,2614.9,2614.7,8.0]
[1748945354838,3.8243021,2614.9,2614.7,8.0]
[1748945355160,3.893,2614.8,2614.7,8.0]
[1748945356239,5.82441733,2614.8,2614.5,0.38786697]
[1748945356470,3.903,2614.7,2614.4,3.15384381]
[1748945356669,3.903,2614.7,2614.5,8.0]
[1748945357357,7.72757745,2614.7,2614.5,8.0]
[1748945357533,3.82457745,2614.7,2614.5,8.0]
[1748945357868,3.903,2614.6,2614.5,8.0]
[1748945358327,3.82446155,2614.8,2614.5,8.0]
[1748945358528,3.905,2614.8,2614.7,8.0]
[1748945359064,1.1493,2615.2,2614.7,8.0]
[1748945359228,3.82387488,2615.2,2615.0,8.0]
[1748945359430,3.907,2615.1,2615.0,8.0]
[1748945359753,7.73094554,2615.1,2615.0,8.0]
[1748945361674,3.82410568,2615.0,2614.7,3.15384381]
[1748945361981,3.906,2614.9,2614.7,3.15384381]
[1748945362468,3.905,2614.9,2614.7,11.15384381]
[1748945362632,7.72933873,2614.9,2614.7,11.15384381]
[1748945364771,3.82438427,2614.8,2614.7,8.0]
[1748945364973,7.72933873,2614.9,2614.7,8.0]
[1748945364974,3.905,2614.9,2614.7,8.0]
[1748945365269,3.82438427,2614.8,2614.7,8.0]
[1748945369577,7.72931418,2614.9,2614.7,8.0]
[1748945369775,7.72931418,2614.9,2614.7,11.15384381]
[1748945371053,3.82431418,2614.9,2614.7,11.15384381]
[1748945371254,3.8242754,2614.9,2614.7,11.15384381]
[1748945371470,3.904,2614.8,2614.7,11.15384381]
[1748945373071,3.904,2614.8,2614.7,3.15384381]
[1748945378837,7.72838427,2614.8,2614.7,3.15384381]
[1748945380335,7.72838427,2614.8,2614.6,10.0]
[1748945380483,7.72838427,2614.8,2614.6,8.0]
[1748945381332,3.904,2614.8,2614.6,8.0]
[1748945381824,3.904,2614.8,2614.7,3.15384381]
[1748945382731,3.904,2614.8,2614.7,11.15384381]
[1748945383500,3.82423903,2614.9,2614.8,8.0]
[1748945383702,7.72023903,2614.9,2614.8,8.0]
[1748945384830,3.896,2614.9,2614.8,8.0]
[1748945385245,4.96901213,2615.1,2614.8,8.0]
[1748945385551,3.82423802,2614.9,2614.8,8.0]
[1748945386429,7.71816657,2615.0,2614.8,8.0]
[1748945386659,1.1231,2615.3,2614.9,3.15384381]
[1748945386865,1.1231,2615.5,2615.4,3.82350692]
[1748945387046,3.901,2615.8,2615.4,3.82340634]
[1748945387355,3.901,2615.8,2615.7,3.15384381]
[1748945387554,3.901,2615.8,2615.6,0.60428068]
[1748945387757,7.72399015,2615.8,2615.6,0.60428068]
[1748945387972,7.72398859,2615.8,2615.6,0.60428068]
[1748945388260,7.72398769,2615.8,2615.5,11.75812449]
[1748945388555,5.16799121,2615.8,2615.4,0.60428068]
[1748945388861,7.93,2616.4,2615.8,8.0]
[1748945388862,1.168,2616.3,2615.8,8.0]
[1748945389018,5.069,2616.3,2615.8,8.0]
[1748945389219,8.89133149,2616.3,2615.8,8.0]
[1748945389566,1.168,2616.3,2616.0,8.0]
[1748945389767,3.901,2616.2,2616.0,8.0]
[1748945390132,3.9,2616.2,2616.0,8.0]
[1748945390332,4.4068,2616.2,2616.0,8.0]
[1748945390535,0.5068,2616.2,2616.0,8.0]
[1748945390823,3.9,2616.1,2616.0,8.0]
[1748945391166,3.904,2616.5,2616.2,3.82226816]
[1748945391319,3.906,2616.5,2616.2,6.97611197]
[1748945391649,3.906,2616.5,2616.2,3.15384381]
[1748945392849,3.906,2616.5,2616.2,6.97611569]
[1748945393931,3.906,2616.5,2616.4,8.0]
[1748945394528,1.1466,2616.6,2616.4,8.0]
[1748945394730,3.903,2616.5,2616.4,8.0]
[1748945394936,3.903,2616.5,2616.2,8.0]
[1748945395141,3.903,2616.5,2616.1,11.82246462]
[1748945395333,3.903,2616.5,2616.1,11.82240973]
[1748945395531,3.903,2616.5,2616.1,12.21232209]
[1748945395739,3.903,2616.5,2616.1,12.21238974]
[1748945395963,1.1466,2616.6,2616.2,3.82224571]
[1748945396162,1.1466,2616.6,2616.1,0.38991236]
[1748945396322,1.1466,2616.6,2616.3,8.0]
[1748945396323,3.903,2616.5,2616.3,8.0]
[1748945397261,3.903,2616.5,2616.2,8.0]
[1748945398671,7.72491272,2616.5,2616.0,11.82254672]
[1748945398832,3.903,2616.5,2616.2,8.0]
[1748945399279,3.903,2616.5,2616.1,12.19557899]
[1748945400035,8.6617289,2616.5,2616.1,0.37315911]
[1748945400272,4.99524555,2616.4,2615.7,6.97690073]
[1748945400574,7.72130742,2616.3,2615.9,8.0]
[1748945400781,7.72130742,2616.3,2615.8,11.82284991]
[1748945401085,1.27165535,2616.2,2615.8,11.82284991]
[1748945401371,3.899,2616.1,2615.8,11.82284991]
[1748945401969,7.72148476,2616.1,2615.8,8.0]
[1748945402176,3.899,2616.1,2615.8,12.19775668]
[1748945402471,3.899,2616.1,2615.8,8.37483915]
[1748945402675,4.79830609,2616.1,2615.8,8.37483915]
[1748945403046,8.62084737,2616.1,2615.8,8.37483915]
[1748945403253,1.1269,2616.0,2615.3,3.75370039]
[1748945403501,1.1269,2615.6,2615.3,0.37261767]
[1748945403659,3.901,2615.5,2615.3,4.19625099]
[1748945403993,3.901,2615.5,2615.4,3.82350692]
[1748945404196,3.903,2615.5,2615.4,3.8233609]
[1748945404511,7.72638625,2615.5,2614.9,7.99204693]
[1748945404668,1.1269,2615.4,2615.1,3.82391281]
[1748945405067,1.1269,2615.4,2615.1,4.21493606]
[1748945405273,1.1269,2615.4,2615.2,8.0]
[1748945405476,1.1269,2615.4,2615.2,3.8237808]
[1748945405809,1.1269,2615.7,2615.3,3.15384381]
[1748945405958,3.903,2615.6,2615.4,8.0]
[1748945407781,3.903,2615.6,2615.2,8.0]
[1748945408160,7.72622236,2615.6,2615.2,11.82379129]
[1748945408666,3.903,2615.6,2615.2,11.82379129]
[1748945408862,7.72630592,2615.6,2615.1,15.36760735]
[1748945409049,7.72630592,2615.6,2615.2,8.0]
[1748945409472,7.72630592,2615.6,2615.2,11.82379228]
[1748945409897,7.72630592,2615.6,2615.4,8.0]
[1748945410367,8.99392336,2615.6,2615.4,8.0]
[1748945410567,8.99392336,2615.6,2615.2,8.0]
[1748945410968,8.99392336,2615.6,2615.2,11.82379055]
[1748945411165,5.17061744,2615.6,2615.1,3.54370668]
[1748945411394,3.903,2615.6,2615.2,8.0]
[1748945411691,7.72628011,2615.6,2615.2,8.0]
[1748945412101,3.903,2615.6,2615.2,8.0]
[1748945412321,7.7262953,2615.6,2615.2,8.0]
[1748945413140,3.903,2615.6,2615.2,8.0]
[1748945413437,7.72630257,2615.6,2615.2,8.0]
[1748945413585,4.95004643,2615.7,2615.3,6.97747499]
[1748945413785,5.00529327,2615.9,2615.6,8.0]
[1748945414129,4.40052933,2615.8,2615.6,8.0]
[1748945414479,0.50052933,2615.8,2615.6,8.0]
[1748945414709,3.899,2615.7,2615.6,8.0]
[1748945416839,3.898,2615.7,2615.6,8.0]
[1748945417907,3.898,2615.7,2615.5,6.97719428]
[1748945417908,5.00529327,2615.9,2615.5,3.15384381]
[1748945418119,3.898,2615.8,2615.5,3.15384381]
[1748945418322,5.00529327,2615.9,2615.5,3.15384381]
[1748945418530,3.897,2615.8,2615.5,3.15384381]
[1748945419519,7.71992633,2615.8,2615.5,3.15384381]
[1748945420938,3.82292633,2615.8,2615.5,3.15384381]
[1748945421234,3.896,2615.7,2615.5,3.15384381]
[1748945421618,3.82280464,2615.9,2615.6,8.0]
[1748945421819,3.896,2615.7,2615.6,8.0]
[1748945422005,1.156,2616.1,2615.6,8.0]
[1748945422209,7.71874469,2616.0,2615.8,8.0]
[1748945422408,1.156,2616.1,2616.0,8.0]
[1748945422596,5.051,2616.1,2616.0,8.0]
[1748945422931,1.156,2616.1,2616.0,8.0]
[1748945423401,3.82219974,2616.3,2616.0,8.0]
[1748945423402,4.92749974,2616.3,2616.0,8.0]
[1748945423608,7.71933997,2616.2,2616.0,8.0]
[1748945424292,5.80245073,2616.3,2616.0,8.0]
[1748945424494,4.92749298,2616.3,2616.0,8.0]
[1748945424738,3.896,2616.2,2616.0,8.0]
[1748945426912,4.92749298,2616.3,2616.0,8.0]
[1748945427112,3.894,2616.2,2616.0,8.0]
[1748945428150,7.71635215,2616.2,2616.0,8.0]
[1748945428358,3.894,2616.2,2616.0,8.0]
[1748945428546,3.894,2616.2,2615.3,1.009]
[1748945428547,5.15837491,2616.2,2615.6,8.59985658]
[1748945428742,3.894,2616.2,2615.6,8.59985658]
[1748945428942,3.82271942,2616.0,2615.6,8.59985658]
[1748945429254,3.893,2615.9,2615.6,8.59985658]
[1748945429455,3.893,2615.9,2615.6,12.42304734]
[1748945430345,3.893,2615.9,2615.6,8.59985658]
[1748945430661,8.91294462,2615.9,2615.6,8.0]
[1748945430854,3.82306839,2615.7,2615.6,8.0]
[1748945431151,7.71711789,2615.7,2615.4,0.59985658]
[1748945431356,7.71711789,2615.7,2615.3,7.57734183]
[1748945431525,7.71711789,2615.7,2615.4,8.0]
[1748945433036,3.82175342,2616.6,2615.7,11.82300316]
[1748945433238,3.82255771,2616.1,2615.7,3.15384381]
[1748945433437,3.82298001,2615.8,2615.7,8.0]
[1748945433843,8.93168001,2615.8,2615.7,8.0]
[1748945434268,8.93168001,2615.8,2615.5,8.0]
[1748945435468,9.33058679,2615.8,2615.5,8.0]
[1748945435670,5.50760678,2615.8,2615.5,8.0]
[1748945435870,3.82308354,2615.7,2615.5,8.0]
[1748945436170,3.9,2615.6,2615.5,8.0]
[1748945436386,3.82344214,2615.5,2615.3,0.59985658]
[1748945436589,3.901,2615.4,2615.2,0.59985658]
[1748945436748,3.901,2615.4,2615.1,8.98697774]
[1748945437262,3.901,2615.4,2615.1,12.8109103]
[1748945437460,3.901,2615.4,2615.2,0.59985658]
[1748945437755,3.901,2615.4,2615.1,12.8109103]
[1748945438572,3.901,2615.4,2615.3,8.0]
[1748945440371,3.898,2615.4,2615.3,11.82356867]
[1748945442061,5.4305347,2615.8,2615.3,8.0]
[1748945442062,1.2087,2615.8,2615.3,8.0]
[1748945442265,3.899,2615.7,2615.6,3.15384381]
[1748945444984,3.899,2615.7,2615.4,3.15384381]
[1748945445545,4.92845032,2615.5,2615.3,8.0]
[1748945445751,3.897,2615.4,2615.1,0.38712116]
[1748945445982,3.897,2615.4,2615.0,14.97785679]
[1748945446283,3.897,2615.4,2615.1,3.82394354]
[1748945446489,3.897,2615.4,2615.0,11.15384381]
[1748945446490,3.897,2615.4,2615.0,14.97785122]
[1748945446787,3.897,2615.4,2615.0,14.97786805]
[1748945447588,3.897,2615.4,2615.2,8.0]
[1748945447789,3.897,2615.4,2615.0,14.97785274]
[1748945448102,3.897,2615.4,2615.0,0.38083415]
[1748945448246,1.1779,2615.3,2614.8,8.80681818]
[1748945448451,3.82394554,2615.1,2614.8,8.80681818]
[1748945448646,3.897,2615.0,2614.8,8.80681818]
[1748945448884,3.897,2615.0,2614.9,8.0]
[1748945449263,8.8755838,2615.0,2614.8,8.80681818]
[1748945449789,5.05149203,2615.0,2614.8,17.19353424]
[1748945449984,8.87568392,2615.0,2614.8,17.19353424]
[1748945450492,3.896,2615.1,2614.9,11.15384381]
[1748945450787,3.896,2615.1,2614.9,14.97799549]
[1748945451151,3.896,2615.1,2614.9,11.15384381]
[1748945452692,3.896,2615.1,2614.9,8.0]
[1748945453396,3.896,2615.1,2614.9,11.15384381]
[1748945453759,3.896,2615.1,2614.9,14.97797855]
[1748945454276,3.894,2615.0,2614.9,14.97797855]
[1748945454972,1.1804,2615.5,2615.0,8.0]
[1748945455174,3.894,2615.4,2615.2,3.15384381]
[1748945455874,5.00376396,2615.5,2615.2,3.15384381]
[1748945456075,3.894,2615.3,2615.2,11.15384381]
[1748945456473,3.894,2615.4,2615.2,14.97764234]
[1748945456886,3.894,2615.4,2615.2,11.15384381]
[1748945457484,3.894,2615.3,2615.2,14.97759995]
[1748945457690,3.82319133,2615.7,2615.3,8.0]
[1748945457887,7.71728863,2615.6,2615.3,8.0]
[1748945460498,7.71728863,2615.6,2615.2,11.15384381]
[1748945460816,7.71728863,2615.6,2615.3,8.0]
[1748945461010,3.82336437,2615.5,2615.3,8.0]
[1748945461216,3.893,2615.4,2615.3,8.0]
[1748945462804,3.891,2615.4,2615.3,8.0]
[1748945464720,1.1696,2616.1,2615.7,8.0]
[1748945465019,3.8227382,2616.0,2615.7,11.15384381]
[1748945465334,7.7157382,2616.0,2615.7,2.75865364]
[1748945466102,3.82280079,2615.9,2615.7,2.75865364]
[1748945466505,3.892,2615.8,2615.7,2.75865364]
[1748945467324,3.892,2615.8,2615.7,8.0]
[1748945467494,7.71492224,2615.8,2615.7,8.0]
[1748945468638,3.892,2615.8,2615.7,8.0]
[1748945469335,7.71492224,2615.8,2615.7,8.0]
[1748945469540,8.86869506,2615.8,2615.7,8.0]
[1748945469737,10.05049506,2615.8,2615.7,8.0]
[1748945474251,1.15377282,2615.8,2615.7,8.0]
[1748945474469,3.888,2615.8,2615.7,8.0]
[1748945475350,3.889,2615.8,2615.7,8.0]
[1748945476341,3.889,2615.8,2615.6,3.15384381]
[1748945476750,3.82308868,2615.7,2615.4,8.0]
[1748945476973,3.82298339,2615.8,2615.4,11.15384381]
[1748945477118,3.888,2615.7,2615.4,11.15384381]
[1748945477541,3.888,2615.7,2615.4,14.97734515]
[1748945479452,3.82292753,2615.8,2615.4,14.97734515]
[1748945479750,3.886,2615.7,2615.4,14.97734515]
[1748945480108,3.886,2615.7,2615.4,11.15384381]
[1748945480546,7.7090818,2615.7,2615.4,11.15384381]
[1748945480761,7.70913313,2615.7,2615.4,11.15384381]
[1748945480952,3.886,2615.7,2615.4,11.15384381]
[1748945481556,3.82381492,2615.2,2615.0,3.15384381]
[1748945481850,7.70995233,2615.1,2614.8,9.19353424]
[1748945482368,3.886,2615.1,2614.8,9.19353424]
[1748945482661,3.82423802,2614.9,2614.8,9.19353424]
[1748945482859,7.71223802,2614.9,2614.8,9.19353424]
[1748945483031,3.888,2614.9,2614.8,9.19353424]
[1748945483422,7.71223802,2614.9,2614.8,9.19353424]
[1748945485051,7.71223802,2614.9,2614.8,8.80681818]
[1748945485671,7.71223802,2614.9,2614.8,9.19667167]
[1748945491667,3.82423802,2614.9,2614.8,9.19667167]
[1748945491977,7.70923802,2614.9,2614.8,9.19667167]
[1748945493173,8.8625715,2614.9,2614.8,8.80681818]
[1748945499279,9.9825715,2614.9,2614.8,8.80681818]
[1748945502499,6.0975715,2614.9,2614.8,8.80681818]
[1748945502702,9.9785715,2614.9,2614.8,8.80681818]
[1748945513651,9.9745715,2614.9,2614.8,8.80681818]
[1748945518654,6.0975715,2614.9,2614.8,8.80681818]
[1748945518814,10.9725715,2614.9,2614.8,8.80681818]
[1748945521453,10.9725715,2614.9,2614.8,1.37092663]
[1748945522183,10.9725715,2614.9,2614.1,11.15384381]
[1748945522184,3.82498435,2614.4,2614.1,11.15384381]
[1748945522359,3.877,2614.3,2614.1,11.15384381]
[1748945523870,3.82498435,2614.4,2614.1,11.15384381]
[1748945524071,3.877,2614.3,2614.1,11.53122392]
[1748945525363,3.82486727,2614.5,2614.1,11.53122392]